bitfinex-derivatives/quotes_SOLF0:USTF0_20241005
["timestamp","ask_amount","ask_price","bid_price","bid_amount"]
[1728113338763,9.8713,144.03,143.99,11.32502]
[1728113338964,9.8713,144.03,143.99,8.39702]
[1728113339366,6.4,144.02,143.99,3.59702]
[1728113339671,7.7477,144.02,143.99,3.59702]
[1728113344768,11.2193,144.02,143.99,3.59702]
[1728113348180,11.2193,144.02,143.99,0.12502]
[1728113348872,7.7477,144.02,143.99,3.59722]
[1728113350685,7.7477,144.02,143.99,0.12502]
[1728113351283,7.7477,144.02,143.99,3.59712]
[1728113351780,6.4,144.01,143.99,0.12502]
[1728113351983,1.3477,144.02,143.99,0.12502]
[1728113352188,6.4,144.01,143.99,0.12502]
[1728113352881,6.4,144.01,143.99,3.59722]
[1728113355182,6.4,144.01,143.99,0.12502]
[1728113356376,7.7477,144.02,144.0,3.4719]
[1728113356580,12.5143,144.04,143.99,6.52502]
[1728113357484,12.5143,144.04,144.0,3.4719]
[1728113359289,6.4,144.03,144.0,3.4719]
[1728113359893,3.4713,144.03,144.0,3.4719]
[1728113360189,6.4,144.02,144.0,3.4719]
[1728113360487,6.4,144.01,143.99,0.12502]
[1728113360691,6.4,144.01,143.99,3.59712]
[1728113363287,6.4,144.01,143.99,0.12502]
[1728113364993,6.4,144.01,143.99,3.59722]
[1728113368684,6.4,144.02,144.0,3.472]
[1728113373098,9.8715,144.02,143.99,3.59722]
[1728113374786,6.4,144.01,143.99,0.12502]
[1728113375090,9.8718,144.01,143.99,0.12502]
[1728113375397,6.4,144.01,143.99,0.12502]
[1728113375699,9.8718,144.01,143.99,0.12502]
[1728113376697,6.4,144.01,143.99,0.12502]
[1728113380196,9.8718,144.01,143.99,0.12502]
[1728113381700,9.872,144.0,143.99,0.12502]
[1728113388516,6.4,144.0,143.99,0.12502]
[1728113391722,3.4719,144.01,143.99,0.12502]
[1728113392022,9.8715,144.02,143.99,3.59722]
[1728113395925,6.4,144.0,143.99,3.59722]
[1728113399023,6.4,144.0,143.99,0.12502]
[1728113399225,9.872,144.0,143.99,0.12502]
[1728113403425,6.4,144.02,143.99,0.12502]
[1728113404022,6.4,144.02,143.99,3.59712]
[1728113405827,9.8715,144.02,143.99,3.59712]
[1728113406027,9.8715,144.02,143.99,0.12502]
[1728113406229,6.4,144.0,143.99,0.12502]
[1728113409738,6.4,144.02,143.99,3.59722]
[1728113410128,9.8715,144.02,143.99,3.59722]
[1728113411133,9.8715,144.02,143.99,0.12502]
[1728113411436,6.4,144.0,143.99,0.12502]
[1728113415138,3.4714,144.03,144.0,3.472]
[1728113415343,9.8714,144.03,144.0,3.472]
[1728113416647,9.8714,144.03,143.99,0.12502]
[1728113416648,9.8714,144.03,143.99,3.59712]
[1728113416941,6.4,144.03,143.99,0.12502]
[1728113417845,6.4,144.03,144.0,3.4718]
[1728113419150,9.8713,144.03,144.0,3.4718]
[1728113421949,6.4,144.01,143.99,3.59722]
[1728113423354,6.4,144.03,143.99,0.12502]
[1728113425052,9.8714,144.03,144.0,3.4719]
[1728113427555,6.4,144.01,144.0,3.4719]
[1728113428355,6.4,144.01,143.99,3.59712]
[1728113430253,6.4,144.01,143.99,0.12502]
[1728113432058,9.8718,144.01,143.99,0.12502]
[1728113432358,6.4,144.0,143.99,0.12502]
[1728113434362,3.472,144.01,143.99,0.12502]
[1728113435761,9.8716,144.02,143.99,0.12502]
[1728113440156,9.8714,144.03,143.99,3.59722]
[1728113443769,9.8714,144.03,143.99,0.12502]
[1728113443967,2.6432,144.04,143.99,0.12502]
[1728113444167,6.4,144.03,143.99,0.12502]
[1728113444567,3.4713,144.03,144.0,3.4719]
[1728113444767,6.4,144.03,143.99,0.12502]
[1728113445064,6.4,144.03,144.0,3.4718]
[1728113447079,6.4,144.02,144.0,3.4718]
[1728113448075,6.4,144.01,143.99,0.12502]
[1728113448279,6.4,144.0,143.99,0.12502]
[1728113450783,6.4,144.01,143.99,0.12502]
[1728113451981,9.8718,144.01,143.99,0.12502]
[1728113458879,9.8717,144.02,143.99,3.59722]
[1728113459791,6.4,144.02,143.99,3.59722]
[1728113460285,2.6432,144.04,143.99,0.12502]
[1728113460485,6.1143,144.04,144.01,3.4717]
[1728113460687,6.4,144.03,144.01,3.4717]
[1728113462491,4.7742,144.06,144.03,3.4712]
[1728113462701,11.1742,144.06,144.03,3.4712]
[1728113462995,11.1742,144.06,144.02,3.4714]
[1728113463492,6.4,144.05,144.02,3.4714]
[1728113463694,9.8708,144.05,144.02,3.4714]
[1728113464794,3.4708,144.05,144.02,3.4714]
[1728113465099,7.7036,144.06,144.01,6.4]
[1728113465302,11.1742,144.06,144.03,3.4712]
[1728113465596,7.7036,144.06,144.01,6.4]
[1728113465795,7.7036,144.06,144.0,4.8]
[1728113466002,7.7036,144.06,144.02,6.4]
[1728113467001,7.7036,144.06,144.03,3.4711]
[1728113467500,3.4701,144.08,144.05,3.4708]
[1728113467700,9.0455,144.1,144.05,6.4]
[1728113467895,6.4,144.1,144.05,6.4]
[1728113468194,6.4,144.1,144.06,4.8]
[1728113468403,9.99462,144.11,144.07,3.4702]
[1728113471306,9.99462,144.11,144.08,3.4701]
[1728113471709,9.99462,144.11,144.06,11.2]
[1728113471903,9.99462,144.11,144.02,67.11695796]
[1728113471904,6.4,144.08,144.02,67.11695796]
[1728113472106,6.4,144.08,144.03,11.2]
[1728113472503,9.8701,144.08,144.04,3.4709]
[1728113472698,3.4701,144.08,144.04,3.4709]
[1728113472902,3.4701,144.08,144.03,11.2]
[1728113472903,4.92502,144.11,144.03,11.2]
[1728113473106,6.4,144.08,144.05,3.4708]
[1728113474010,6.4,144.06,144.02,67.11695796]
[1728113474209,6.4,144.05,144.02,71.91695796]
[1728113474407,6.4,144.05,144.02,67.11695796]
[1728113475201,6.4,144.06,144.02,67.11695796]
[1728113476013,9.8706,144.06,144.02,67.11695796]
[1728113476213,6.4,144.06,144.02,67.11695796]
[1728113476917,3.4705,144.07,144.03,3.4713]
[1728113477108,9.8705,144.07,144.03,3.4713]
[1728113480119,9.8705,144.07,144.02,6.4]
[1728113480416,9.8705,144.07,144.04,3.471]
[1728113481113,6.4,144.07,144.02,6.4]
[1728113481414,6.4,144.07,144.05,3.4707]
[1728113481817,3.59442,144.11,144.04,11.2]
[1728113482017,0.12502,144.11,144.06,6.4]
[1728113482221,0.12502,144.11,144.07,11.2]
[1728113482516,0.12502,144.11,144.08,11.2]
[1728113482717,0.12502,144.11,144.09,4.8]
[1728113483218,0.12502,144.11,144.1,3.4696]
[1728113483413,0.12502,144.11,144.09,4.8]
[1728113483716,0.12502,144.11,144.09,8.2697]
[1728113484507,0.12502,144.11,144.09,4.8]
[1728113485615,9.99452,144.11,144.09,4.8]
[1728113485911,6.4,144.1,144.06,4.8]
[1728113486111,3.4698,144.09,144.06,4.8]
[1728113486314,6.4,144.08,144.06,4.8]
[1728113486715,9.8701,144.08,144.06,4.8]
[1728113487017,9.8701,144.08,144.04,8.271]
[1728113488216,9.8701,144.08,144.04,3.471]
[1728113488424,6.4,144.08,144.05,3.4707]
[1728113489224,11.2299,144.09,144.05,3.4707]
[1728113494220,1.36,144.09,144.07,3.4702]
[1728113494420,9.99452,144.11,144.07,6.4]
[1728113494421,6.52502,144.11,144.07,6.4]
[1728113494611,0.12502,144.11,144.07,11.2]
[1728113494921,0.12502,144.11,144.08,3.4699]
[1728113495321,0.12502,144.11,144.07,11.2]
[1728113495322,6.52502,144.11,144.07,11.2]
[1728113495522,9.99452,144.11,144.07,14.6702]
[1728113497417,9.99452,144.11,144.07,8.2702]
[1728113498727,3.47,144.09,144.07,4.8]
[1728113500821,7.8015,144.1,144.07,4.8]
[1728113501016,11.2712,144.1,144.07,4.8]
[1728113501911,4.8712,144.1,144.07,8.2702]
[1728113505112,3.4703,144.07,144.04,8.2709]
[1728113505317,9.8703,144.07,144.04,3.4709]
[1728113505516,9.8703,144.07,144.01,67.11857413]
[1728113505517,6.4,144.07,144.01,67.11857413]
[1728113505721,6.4,144.07,144.02,4.8]
[1728113506616,3.4706,144.06,144.03,3.4711]
[1728113506819,6.4,144.07,144.02,11.2]
[1728113508023,9.8704,144.07,144.04,3.471]
[1728113510527,6.4,144.07,144.01,67.11857413]
[1728113510719,3.4706,144.06,144.03,3.4712]
[1728113516925,9.8706,144.06,144.02,4.8]
[1728113517122,9.8706,144.06,144.02,8.2714]
[1728113520928,6.4,144.06,144.02,4.8]
[1728113521129,3.4711,144.04,144.02,4.8]
[1728113526039,6.4,144.06,144.02,4.8]
[1728113526230,6.4,144.05,144.02,4.8]
[1728113527036,3.4712,144.04,144.02,4.8]
[1728113528345,9.8709,144.05,144.02,8.2715]
[1728113530935,9.8709,144.05,144.02,3.4715]
[1728113535139,3.4717,144.02,143.99,3.59722]
[1728113535341,6.4,144.04,143.99,4.92502]
[1728113535845,9.8709,144.05,144.01,3.4715]
[1728113536343,3.4704,144.07,144.04,3.4709]
[1728113536936,9.8704,144.07,144.04,3.4709]
[1728113537638,3.4704,144.07,144.04,3.4709]
[1728113545747,6.4,144.08,144.04,3.4709]
[1728113545950,6.4,144.08,144.03,6.4]
[1728113546454,6.4,144.08,144.05,3.4706]
[1728113546755,6.4,144.08,144.03,6.4]
[1728113546956,9.8701,144.08,144.05,3.4707]
[1728113547654,3.4705,144.07,144.04,3.471]
[1728113552355,3.471,144.04,144.01,8.2717]
[1728113554256,6.4,144.05,144.01,4.8]
[1728113554559,9.8709,144.05,144.02,3.4714]
[1728113557462,6.4,144.05,144.01,4.8]
[1728113557754,3.4713,144.03,144.0,8.272]
[1728113559161,6.4,144.04,144.0,8.272]
[1728113559461,9.8711,144.04,144.0,8.272]
[1728113561061,9.8711,144.04,144.0,3.472]
[1728113561978,9.8711,144.04,144.01,3.4718]
[1728113562681,9.8711,144.04,143.99,0.12502]
[1728113562973,9.8711,144.04,144.0,3.4719]
[1728113563177,3.4715,144.03,144.0,3.4719]
[1728113564077,6.4,144.04,143.99,11.32502]
[1728113564978,3.4713,144.03,144.0,3.4718]
[1728113568176,6.4,144.04,144.0,3.4718]
[1728113568491,9.8711,144.04,144.0,3.4718]
[1728113568677,4.8,144.07,144.0,6.4]
[1728113568877,6.4,144.05,144.02,3.4715]
[1728113569580,9.8709,144.05,144.02,3.4715]
[1728113570883,3.4709,144.05,144.02,3.4715]
[1728113571490,2.6973,144.09,144.01,6.4]
[1728113571777,9.8704,144.07,144.02,11.2]
[1728113572579,7.4973,144.09,144.02,11.2]
[1728113572580,6.4,144.08,144.03,6.4]
[1728113573080,6.4,144.08,144.05,3.4706]
[1728113573276,9.8703,144.07,144.02,11.2]
[1728113574087,9.8703,144.07,144.04,3.471]
[1728113575786,9.8701,144.08,144.05,3.4708]
[1728113576287,6.4,144.08,144.05,3.4708]
[1728113576885,9.8702,144.08,144.04,3.4709]
[1728113577987,9.8702,144.08,144.03,6.4]
[1728113578189,9.8702,144.08,144.05,3.4708]
[1728113578384,6.4,144.07,144.02,4.8]
[1728113578584,6.4,144.07,144.02,11.2]
[1728113579187,6.4,144.07,144.04,3.471]
[1728113583391,3.4702,144.08,144.04,3.471]
[1728113583589,9.8702,144.08,144.04,3.471]
[1728113585696,9.8702,144.08,144.03,6.4]
[1728113585895,9.8702,144.08,144.05,3.4708]
[1728113592299,1.397,144.09,144.02,11.2]
[1728113592599,6.4,144.04,143.99,0.12502]
[1728113592799,6.4,144.03,143.99,4.92502]
[1728113594101,9.8713,144.03,143.99,0.12502]
[1728113594698,9.8713,144.03,143.99,3.59712]
[1728113594899,9.8713,144.03,143.99,0.12502]
[1728113595502,9.8711,144.04,144.01,3.4717]
[1728113595695,6.4,144.04,144.01,3.4717]
[1728113595896,6.4,144.06,144.01,6.4]
[1728113596098,3.4706,144.06,144.02,3.4713]
[1728113596306,3.4706,144.06,144.02,6.4]
[1728113596498,6.4,144.07,144.02,6.4]
[1728113596700,9.8705,144.07,144.03,3.4712]
[1728113598108,3.4706,144.06,144.03,3.4712]
[1728113599304,6.1323,144.08,144.01,6.4]
[1728113599305,6.4,144.05,144.01,6.4]
[1728113599606,9.8708,144.05,144.02,3.4714]
[1728113602303,3.4706,144.06,144.02,9.8714]
[1728113604209,3.4706,144.06,144.03,3.4712]
[1728113609716,6.941,144.27,144.03,4.8]
[1728113609917,7.8015,144.1,144.04,6.4]
[1728113610215,9.8698,144.09,144.06,3.4705]
[1728113614512,1.4015,144.1,144.05,6.4]
[1728113614718,1.4015,144.1,144.08,3.47]
[1728113614922,1.4015,144.1,144.03,4.8]
[1728113615121,1.4015,144.1,144.07,3.4702]
[1728113615420,4.8711,144.1,144.07,3.4702]
[1728113620628,11.2711,144.1,144.07,3.4702]
[1728113624529,0.12502,144.11,144.08,3.47]
[1728113626133,3.59442,144.11,144.08,3.47]
[1728113635433,0.12502,144.11,144.08,3.47]
[1728113640648,3.59452,144.11,144.08,3.47]
[1728113641244,3.4703,144.07,144.03,4.8]
[1728113642042,3.4703,144.07,144.04,3.471]
[1728113642945,3.4699,144.09,144.05,6.4]
[1728113644149,3.4699,144.09,144.06,3.4705]
[1728113651146,6.4,144.1,144.07,3.4702]
[1728113651147,9.8697,144.1,144.07,3.4702]
[1728113651550,6.4,144.09,144.04,6.4]
[1728113652149,3.4701,144.08,144.05,3.4707]
[1728113655451,6.4,144.09,144.05,3.4707]
[1728113655657,9.8699,144.09,144.05,3.4707]
[1728113657248,9.8696,144.1,144.07,3.4702]
[1728113658056,9.8696,144.1,144.06,3.4705]
[1728113658454,6.4,144.1,144.05,6.4]
[1728113658754,3.4701,144.08,144.05,3.4708]
[1728113665857,6.4,144.09,144.04,9.8709]
[1728113666957,3.4701,144.08,144.05,3.4708]
[1728113667655,6.4,144.09,144.04,6.4]
[1728113667863,9.8699,144.09,144.06,3.4704]
[1728113668467,6.4,144.1,144.05,6.4]
[1728113668666,9.8696,144.1,144.07,3.4703]
[1728113673269,3.4699,144.09,144.06,3.4705]
[1728113674361,9.8699,144.09,144.06,3.4705]
[1728113679982,6.4,144.09,144.05,4.8]
[1728113680269,3.4702,144.08,144.05,8.2707]
[1728113680460,6.4,144.09,144.05,8.2707]
[1728113681468,6.4,144.09,144.05,4.8]
[1728113681772,9.8699,144.09,144.06,3.4705]
[1728113681966,3.4699,144.09,144.06,3.4705]
[1728113690681,81.46134556,144.11,144.06,3.4705]
[1728113690682,84.93084556,144.11,144.06,3.4705]
[1728113690885,84.93084556,144.11,144.05,6.4]
[1728113691074,84.93084556,144.11,144.07,6.4]
[1728113691476,84.93084556,144.11,144.08,3.4701]
[1728113693283,91.33084556,144.11,144.07,9.8702]
[1728113700592,91.33084556,144.11,144.07,3.4702]
[1728113702980,91.33084556,144.11,144.06,4.78]
[1728113702981,81.46134556,144.11,144.09,3.4697]
[1728113703982,81.46134556,144.11,144.07,6.4]
[1728113704186,81.46134556,144.11,144.08,3.4699]
[1728113704693,81.46134556,144.11,144.08,6.4]
[1728113704891,0.12502,144.11,144.1,9.8696]
[1728113711695,0.12502,144.11,144.1,11.9896]
[1728113712083,0.12502,144.17,144.1,8.52]
[1728113712288,0.12502,144.17,144.14,3.4685]
[1728113714097,0.12502,144.17,144.15,3.4682]
[1728113715891,0.12502,144.17,144.14,8.52]
[1728113716187,0.12502,144.17,144.16,3.4681]
[1728113718104,0.12502,144.17,144.16,8.2481]
[1728113720795,0.12502,144.17,144.16,16.7681]
[1728113722792,1.3923,144.22,144.17,3.4677]
[1728113722988,1.3923,144.22,144.19,8.52]
[1728113723211,1.3923,144.22,144.2,4.78]
[1728113724093,1.3923,144.22,144.2,8.247]
[1728113730296,1.3923,144.22,144.18,8.52]
[1728113730497,3.4677,144.18,144.14,3.4684]
[1728113730696,8.52,144.19,144.15,4.78]
[1728113731998,3.4677,144.18,144.15,8.2483]
[1728113732603,8.52,144.19,144.15,8.2483]
[1728113732803,3.4675,144.19,144.15,8.2483]
[1728113733305,3.4675,144.19,144.15,16.7683]
[1728113736098,3.4675,144.19,144.15,13.3]
[1728113736309,3.4672,144.2,144.16,3.4679]
[1728113736699,8.52,144.19,144.16,3.4679]
[1728113738194,3.4672,144.2,144.15,13.3]
[1728113738195,11.9872,144.2,144.15,13.3]
[1728113738399,3.4672,144.2,144.16,8.52]
[1728113739100,3.4672,144.2,144.17,3.4679]
[1728113739403,3.4672,144.2,144.16,8.52]
[1728113739801,3.4672,144.2,144.16,11.988]
[1728113743208,3.4672,144.2,144.17,3.4679]
[1728113744617,11.9875,144.19,144.16,3.4681]
[1728113745106,8.52,144.19,144.15,4.78]
[1728113746115,3.4677,144.18,144.15,8.2483]
[1728113746999,8.52,144.19,144.15,8.2483]
[1728113747202,11.9875,144.19,144.15,8.2483]
[1728113747409,2.8341,144.21,144.15,4.78]
[1728113747607,8.52,144.2,144.16,11.988]
[1728113748112,11.9873,144.2,144.16,11.988]
[1728113754710,71.22784448,144.22,144.16,8.52]
[1728113754915,11.987,144.21,144.18,3.4676]
[1728113755307,11.987,144.21,144.18,8.2476]
[1728113757116,3.4674,144.19,144.18,4.78]
[1728113758418,3.4674,144.19,144.16,8.248]
[1728113760720,8.52,144.2,144.16,8.248]
[1728113760721,11.9873,144.2,144.16,8.248]
[1728113764326,3.4673,144.2,144.16,8.248]
[1728113765017,3.4669,144.22,144.19,8.52]
[1728113765220,0.12502,144.23,144.2,8.52]
[1728113766117,0.12502,144.23,144.2,11.987]
[1728113767517,0.12502,144.23,144.21,3.4669]
[1728113768226,0.12502,144.23,144.22,3.4667]
[1728113770424,0.12502,144.23,144.22,8.2467]
[1728113777627,0.12502,144.23,144.22,16.7567]
[1728113784835,8.51,144.27,144.22,13.29]
[1728113785034,0.12502,144.29,144.27,3.4653]
[1728113785234,0.12502,144.29,144.28,8.51]
[1728113785942,0.12502,144.29,144.28,11.9753]
[1728113793544,0.12502,144.29,144.28,11.9853]
[1728113794051,0.12502,144.29,144.28,3.4653]
[1728113794348,0.12502,144.29,144.28,11.9853]
[1728113798252,0.12502,144.29,144.27,4.78]
[1728113798763,3.59022,144.29,144.27,4.78]
[1728113800154,3.4657,144.27,144.26,4.78]
[1728113800352,3.4657,144.27,144.24,98.38220525]
[1728113800554,3.4657,144.27,144.25,4.78]
[1728113802955,3.4657,144.27,144.25,13.3]
[1728113803161,3.4654,144.28,144.25,13.3]
[1728113805755,3.4654,144.28,144.25,16.7659]
[1728113806158,1.48682,144.29,144.26,8.52]
[1728113806353,1.48682,144.29,144.27,3.4653]
[1728113808354,4.95182,144.29,144.26,11.9856]
[1728113820363,3.4655,144.28,144.25,13.3]
[1728113821262,3.4664,144.24,144.18,79.7006787]
[1728113821461,8.52,144.26,144.2,13.36]
[1728113821661,8.52,144.24,144.2,13.36]
[1728113821869,3.4666,144.23,144.2,13.36]
[1728113823366,3.4666,144.23,144.2,16.8272]
[1728113827378,3.4666,144.23,144.2,13.36]
[1728113829176,3.4665,144.23,144.2,13.36]
[1728113830475,3.4667,144.22,144.2,4.84]
[1728113832975,3.4667,144.22,144.19,8.3074]
[1728113833372,8.52,144.23,144.19,8.3074]
[1728113833675,11.9866,144.23,144.19,4.84]
[1728113833868,11.9866,144.23,144.2,3.4672]
[1728113835175,11.9864,144.24,144.21,3.4669]
[1728113839879,8.52,144.23,144.21,3.4669]
[1728113840385,11.9868,144.22,144.19,8.3074]
[1728113840873,11.9868,144.22,144.19,4.84]
[1728113842782,8.52,144.22,144.19,8.3073]
[1728113843183,11.9865,144.23,144.19,8.3073]
[1728113843682,11.9865,144.23,144.19,8.2873]
[1728113845177,3.4667,144.22,144.19,8.2873]
[1728113845579,8.52,144.23,144.2,3.4671]
[1728113846980,11.9866,144.23,144.2,3.4671]
[1728113849493,3.4669,144.22,144.19,8.2873]
[1728113849696,8.52,144.23,144.19,4.82]
[1728113851193,11.9866,144.23,144.2,3.4672]
[1728113855489,1.4306,144.27,144.2,8.52]
[1728113855692,8.52,144.26,144.2,8.52]
[1728113856492,11.9859,144.26,144.22,3.4666]
[1728113857798,11.9859,144.26,144.22,8.2866]
[1728113858696,8.52,144.25,144.22,8.2866]
[1728113864093,8.52,144.25,144.23,3.4664]
[1728113867893,8.52,144.27,144.24,3.4661]
[1728113869300,8.52,144.27,144.25,3.466]
[1728113870500,13.47192,144.29,144.26,3.4657]
[1728113871702,0.12502,144.29,144.27,3.4654]
[1728113872201,0.12502,144.29,144.25,13.3]
[1728113872406,0.12502,144.29,144.28,3.4653]
[1728113873804,0.12502,144.29,144.28,8.2453]
[1728113876904,1.415,144.34,144.28,24.88294329]
[1728113877208,4.78,144.37,144.29,16.63764329]
[1728113877410,8.52,144.32,144.3,16.63764329]
[1728113877802,0.09264525,144.32,144.29,3.465]
[1728113878114,4.78,144.37,144.3,18.34081949]
[1728113878305,3.30371511,144.38,144.31,18.34081949]
[1728113878509,8.52,144.32,144.29,3.59002]
[1728113878711,8.52,144.32,144.3,18.33690932]
[1728113878913,8.52,144.32,144.31,18.33690932]
[1728113879308,3.4641,144.33,144.31,18.33690932]
[1728113879510,8.52,144.32,144.29,0.12502]
[1728113879710,8.52,144.32,144.3,16.57480752]
[1728113879914,3.4638,144.34,144.31,24.81930752]
[1728113880128,8.52,144.34,144.32,16.57480752]
[1728113880311,8.52,144.34,144.33,16.57480752]
[1728113882419,11.9838,144.34,144.33,16.57480752]
[1728113883020,11.9838,144.34,144.31,8.2443]
[1728113884416,3.4638,144.34,144.31,8.2443]
[1728113884629,11.9834,144.36,144.32,3.4641]
[1728113888027,8.52,144.34,144.31,8.2444]
[1728113888432,8.52,144.32,144.29,0.12502]
[1728113888728,8.52,144.32,144.3,4.78]
[1728113889125,8.52,144.32,144.3,8.2447]
[1728113889422,11.9842,144.33,144.3,8.2447]
[1728113890626,7.4915,144.38,144.3,8.2447]
[1728113890823,8.52,144.34,144.3,4.78]
[1728113891726,3.4642,144.33,144.3,8.2447]
[1728113892534,7.4915,144.38,144.3,4.78]
[1728113892731,8.52,144.34,144.3,4.78]
[1728113894137,8.52,144.34,144.3,8.2447]
[1728113894138,3.4641,144.33,144.3,8.2447]
[1728113894332,8.52,144.34,144.29,8.64502]
[1728113894639,3.4648,144.3,144.29,0.12502]
[1728113895031,8.52,144.31,144.29,0.12502]
[1728113896238,11.9846,144.31,144.29,0.12502]
[1728113897141,3.4648,144.3,144.29,0.12502]
[1728113898944,8.52,144.31,144.29,0.12502]
[1728113899136,11.9846,144.31,144.29,0.12502]
[1728113900636,3.4646,144.31,144.29,0.12502]
[1728113900841,3.4643,144.32,144.29,3.59002]
[1728113901139,8.52,144.36,144.31,8.52]
[1728113901341,8.52,144.36,144.31,13.3]
[1728113902040,3.4638,144.34,144.31,16.7644]
[1728113915547,11.9841,144.33,144.31,4.78]
[1728113915747,8.52,144.32,144.3,4.78]
[1728113916646,11.9844,144.32,144.3,4.78]
[1728113917354,3.4645,144.31,144.29,4.90502]
[1728113917557,3.4645,144.31,144.29,0.12502]
[1728113922764,11.9848,144.3,144.29,0.12502]
[1728113924853,11.9848,144.3,144.24,4.78]
[1728113924854,3.4655,144.27,144.24,4.78]
[1728113925055,11.9855,144.27,144.24,4.78]
[1728113925258,11.9855,144.27,144.23,102.64694955]
[1728113925862,8.52,144.27,144.23,89.34694955]
[1728113926063,3.4658,144.26,144.23,89.34694955]
[1728113928163,11.9856,144.27,144.23,89.34694955]
[1728113928366,8.52,144.28,144.23,94.40054955]
[1728113928567,8.52,144.28,144.24,3.4661]
[1728113928870,1.3476,144.29,144.24,8.52]
[1728113929869,4.8128,144.29,144.25,3.4658]
[1728113930274,4.8128,144.29,144.25,8.2458]
[1728113930972,3.4653,144.28,144.25,8.2458]
[1728113932559,3.4653,144.28,144.25,4.78]
[1728113943982,3.4653,144.28,144.25,8.2459]
[1728113951091,9.8676,144.29,144.25,4.78]
[1728113952084,3.4655,144.27,144.25,8.2459]
[1728113953089,3.4655,144.27,144.25,4.78]
[1728113957305,8.52,144.26,144.23,0.12502]
[1728113957497,6.1276,144.29,144.23,0.12502]
[1728113957498,8.52,144.24,144.23,0.12502]
[1728113958003,11.9862,144.24,144.23,0.12502]
[1728113972109,8.52,144.24,144.17,0.12502]
[1728113972309,8.52,144.19,144.17,0.12502]
[1728113972717,3.4677,144.18,144.17,0.12502]
[1728113973104,11.9877,144.18,144.17,0.12502]
[1728113987624,3.4677,144.18,144.17,0.12502]
[1728113987831,11.9877,144.18,144.17,0.12502]
[1728113988123,16.7675,144.19,144.17,0.12502]
[1728113988327,8.52,144.2,144.17,0.12502]
[1728113989324,8.52,144.2,144.17,3.59272]
[1728113992429,8.52,144.2,144.18,3.4676]
[1728113992739,6.1546,144.23,144.17,8.64502]
[1728113992740,8.52,144.22,144.17,8.64502]
[1728113992932,8.52,144.22,144.18,4.78]
[1728113993137,8.52,144.22,144.19,3.4673]
[1728113993340,11.9867,144.22,144.19,3.4673]
[1728113994833,3.4663,144.24,144.21,3.4669]
[1728113995032,8.52,144.23,144.21,3.4669]
[1728113996429,8.52,144.23,144.18,13.3]
[1728113996738,8.52,144.23,144.2,3.4671]
[1728113996936,8.52,144.22,144.2,3.4671]
[1728113997339,8.52,144.21,144.18,4.78]
[1728113997539,8.52,144.21,144.19,3.4674]
[1728113998541,11.9866,144.23,144.2,3.4671]
[1728114002044,11.9866,144.23,144.18,13.3]
[1728114002245,3.4666,144.23,144.19,3.4672]